bitfinex/quotes_ETHUSD_20260227
["timestamp","ask_amount","ask_price","bid_price","bid_amount"]
[1772192014548,1.01436604,1972.6,1972.0,0.0011]
[1772192014750,2.8324453,1972.5,1972.0,1.26883782]
[1772192015332,2.83243104,1972.5,1972.0,1.26883782]
[1772192015753,2.83243104,1972.5,1972.0,0.0011]
[1772192017759,3.84679708,1972.5,1972.0,0.0011]
[1772192017956,1.565,1972.5,1972.0,0.0011]
[1772192018158,1.565,1972.5,1972.0,0.97235684]
[1772192018450,2.8324284,1972.5,1972.0,0.97235684]
[1772192018654,2.8324284,1972.5,1972.1,0.0011]
[1772192019231,1.565,1972.5,1972.1,0.0011]
[1772192019556,1.26732477,1972.7,1972.1,0.97235684]
[1772192019748,1.26732477,1972.7,1972.1,0.0011]
[1772192021260,1.26723438,1972.8,1972.1,0.0011]
[1772192021566,1.26721964,1972.9,1972.1,1.03744496]
[1772192021862,1.26721964,1972.9,1971.5,0.0011]
[1772192021863,1.06784329,1972.1,1971.5,0.0011]
[1772192022031,0.43898357,1972.1,1971.5,0.0022]
[1772192022238,1.06784329,1972.3,1971.5,0.0022]
[1772192023257,2.3354632,1972.2,1971.5,0.0022]
[1772192023660,1.26761991,1972.2,1971.5,0.0022]
[1772192023985,5.06937383,1972.7,1971.5,1.03854496]
[1772192023986,1.06784329,1972.7,1971.5,1.03854496]
[1772192025439,1.26736287,1972.6,1971.7,1.03634496]
[1772192026865,1.26736287,1972.6,1971.8,0.0011]
[1772192027066,1.26736287,1972.6,1971.8,1.03744496]
[1772192027369,2.33519131,1972.7,1971.9,1.26781276]
[1772192027840,2.33519131,1972.7,1972.0,0.0011]
[1772192028047,1.26728642,1972.8,1972.0,1.03744496]
[1772192029470,1.06784329,1972.8,1972.0,0.0011]
[1772192030071,1.06784329,1972.8,1972.0,1.2688367]
[1772192030569,1.06784329,1972.8,1972.1,0.0011]
[1772192031152,1.26710593,1973.0,1972.2,1.03744496]
[1772192031560,1.26710593,1973.0,1972.3,1.26755564]
[1772192031772,1.26794719,1973.3,1972.4,1.03634496]
[1772192031952,0.001,1973.3,1972.4,1.03744496]
[1772192032143,0.001,1973.3,1972.6,1.03634496]
[1772192032546,1.26792015,1973.3,1972.7,0.0011]
[1772192032859,0.001,1973.3,1972.7,0.0011]
[1772192033165,0.001,1973.3,1972.8,1.03744496]
[1772192033371,0.001,1973.3,1972.8,1.03634496]
[1772192033556,0.001,1973.3,1973.0,1.03634496]
[1772192033755,0.001,1973.6,1973.0,1.03634496]
[1772192034085,0.001,1973.6,1973.1,0.0011]
[1772192034585,0.001,1973.6,1973.2,0.0011]
[1772192034798,0.001,1973.6,1973.3,1.03744496]
[1772192034948,1.26737391,1974.2,1973.3,1.03634496]
[1772192035652,1.26737391,1974.2,1973.4,2.30319405]
[1772192036152,1.26737391,1974.2,1973.5,1.03634496]
[1772192036353,0.001,1974.2,1973.5,1.03634496]
[1772192038890,0.001,1974.2,1973.6,1.26672071]
[1772192040260,1.06784329,1974.9,1973.8,1.03634496]
[1772192040460,1.06784329,1974.6,1973.6,1.26672071]
[1772192040867,1.26614332,1974.5,1973.6,1.26672071]
[1772192041064,1.2661208,1974.6,1973.7,1.03634496]
[1772192041985,2.33377778,1974.9,1973.7,1.03634496]
[1772192042482,1.06784329,1975.0,1973.8,1.03634496]
[1772192042676,0.001,1974.1,1973.8,1.03634496]
[1772192042870,1.26588688,1974.9,1974.0,1.03634496]
[1772192043274,1.26587326,1975.0,1974.0,1.03634496]
[1772192043486,2.82756952,1975.4,1974.3,1.03634496]
[1772192044061,1.26555462,1975.5,1974.5,1.03634496]
[1772192044284,1.26531025,1975.8,1974.6,1.03634496]
[1772192044961,1.26531025,1975.8,1974.8,1.03634496]
[1772192047170,1.26531025,1975.8,1974.9,2.30223184]
[1772192047376,1.26531025,1975.8,1975.0,1.03634496]
[1772192049268,1.26531025,1975.8,1974.6,1.03634496]
[1772192049269,1.06784329,1975.6,1974.6,1.03634496]
[1772192050194,1.26531025,1975.8,1974.6,1.03634496]
[1772192050368,2.82628292,1975.9,1974.6,1.03634496]
[1772192051381,2.82628292,1975.9,1974.8,1.03717555]
[1772192054290,2.82628292,1975.9,1974.9,2.30306243]
[1772192054601,2.82628292,1975.9,1975.0,1.03717555]
[1772192054899,0.001,1975.8,1975.0,1.03717555]
[1772192056780,0.001,1975.8,1975.1,1.26575869]
[1772192056989,0.001,1975.8,1975.2,1.03717555]
[1772192058792,0.001,1975.8,1975.2,2.30281895]
[1772192060788,0.001,1975.8,1975.2,1.03717555]
[1772192061003,0.001,1975.8,1975.2,2.30286356]
[1772192062510,0.001,1975.8,1975.2,2.3028683]
[1772192062808,0.001,1975.8,1975.2,1.03717555]
[1772192065015,0.001,1975.8,1974.9,2.30306243]
[1772192065016,1.03871219,1975.8,1974.9,2.30306243]
[1772192065191,1.03771219,1975.6,1974.7,2.30316549]
[1772192065583,1.03771219,1975.6,1974.7,1.03717555]
[1772192065784,1.03771219,1975.6,1974.5,1.03717555]
[1772192066287,4.0,1975.2,1974.4,1.26620745]
[1772192066483,1.03771219,1975.1,1974.4,1.26620745]
[1772192066796,1.03771219,1975.1,1974.8,0.0011]
[1772192067118,1.03771219,1975.1,1974.3,1.03717555]
[1772192067119,2.30353497,1975.0,1974.3,1.03717555]
[1772192067293,2.30353497,1975.0,1974.7,0.0011]
[1772192067627,2.30353497,1975.0,1974.5,0.0011]
[1772192067816,2.30353497,1975.0,1974.0,0.0011]
[1772192067817,1.03771219,1974.7,1974.0,0.0011]
[1772192068015,1.03771219,1974.4,1974.0,0.0011]
[1772192068911,0.35304616,1974.4,1974.0,0.0011]
[1772192069082,1.26627158,1974.3,1974.0,0.0011]
[1772192069514,1.26627158,1974.3,1973.8,0.0011]
[1772192069816,0.43192221,1974.2,1973.8,0.0011]
[1772192070196,0.43192221,1974.1,1973.2,1.03717555]
[1772192070584,0.43192221,1973.8,1972.9,1.03717555]
[1772192071005,1.69854359,1973.8,1972.9,1.03717555]
[1772192071613,1.26659235,1973.8,1973.0,1.03717555]
[1772192072885,1.69860068,1973.8,1973.0,1.03717555]
[1772192073725,0.43200833,1973.7,1972.7,2.30445945]
[1772192073919,0.43200833,1973.7,1972.8,1.03717555]
[1772192075209,1.26672071,1973.6,1972.9,2.3043457]
[1772192075887,1.26672071,1973.6,1973.0,1.03717555]
[1772192076120,1.03771219,1973.5,1972.5,1.03717555]
[1772192077109,1.26684909,1973.4,1972.7,1.03717555]
[1772192077901,2.30456128,1973.4,1972.7,1.03717555]
[1772192079422,2.30456128,1973.4,1972.8,1.26723438]
[1772192079714,2.30456128,1973.4,1972.7,1.03717555]
[1772192080017,2.30456137,1973.4,1972.7,2.30446052]
[1772192080219,2.30456137,1973.4,1972.7,1.03717555]
[1772192080422,0.9778843,1973.3,1972.6,0.0011]
[1772192081291,1.26697749,1973.2,1972.6,0.0011]
[1772192081821,0.9778843,1973.3,1972.6,0.96536387]
[1772192082025,1.26688866,1973.4,1972.6,0.96536387]
[1772192083095,1.26678506,1973.5,1972.6,0.96536387]
[1772192083295,0.001,1973.7,1973.1,0.96426387]
[1772192085525,0.001,1973.7,1973.3,0.96426387]
[1772192087529,0.001,1973.7,1973.0,2.23131759]
[1772192087714,0.001,1973.7,1973.1,0.96426387]
[1772192089427,0.001,1973.7,1973.3,0.96426387]
[1772192090830,6.04317323,1974.3,1973.4,0.96426387]
[1772192091332,1.555,1974.6,1973.6,0.96426387]
[1772192091502,2.24391775,1974.7,1973.8,0.96426387]
[1772192093331,0.9778843,1974.6,1973.8,0.96426387]
[1772192093532,2.24402762,1974.5,1973.9,1.26652819]
[1772192093739,0.9778843,1974.4,1973.6,5.06675681]
[1772192093923,0.9778843,1974.4,1973.6,1.26672071]
[1772192094526,0.9778843,1974.4,1973.5,2.23099636]
[1772192095636,1.26627158,1974.3,1973.5,2.23099636]
[1772192096016,2.24414394,1974.4,1973.6,0.96426387]
[1772192096218,0.9778843,1974.3,1973.4,1.2668476]
[1772192096629,0.9778843,1974.3,1973.4,2.23111147]
[1772192096827,0.9778843,1974.3,1973.4,2.23110249]
[1772192097337,0.9778843,1974.3,1973.4,1.26683862]
[1772192097535,0.9778843,1974.3,1973.4,2.23110249]
[1772192097714,1.26633573,1974.2,1973.4,2.23110249]
[1772192098539,2.24422003,1974.2,1973.4,2.23110249]
[1772192099544,2.24405275,1974.5,1973.6,0.96426387]
[1772192099713,0.9778843,1974.4,1973.5,0.96426387]
[1772192100317,1.26616845,1974.5,1972.8,0.0011]
[1772192100318,1.74628992,1973.6,1972.8,0.0011]
[1772192100658,0.41421891,1973.5,1972.9,0.96426387]
[1772192101119,0.9778843,1974.1,1973.0,0.96426387]
[1772192101321,0.9778843,1974.4,1973.3,0.96426387]
[1772192101731,2.24415588,1974.3,1973.4,1.26684909]
[1772192102042,2.24415588,1974.3,1973.4,0.96426387]
[1772192102943,0.9778843,1974.2,1973.4,0.96426387]
[1772192103161,0.9778843,1974.2,1973.2,2.23119513]
[1772192103527,0.9778843,1974.2,1973.3,0.96426387]
[1772192103729,1.26617637,1974.5,1973.5,0.96426387]
[1772192104143,0.001,1974.1,1973.5,0.96426387]
[1772192105736,1.26588688,1974.9,1973.7,0.96426387]
[1772192107742,5.06349738,1975.0,1973.7,0.96426387]
[1772192107743,5.06349738,1975.0,1973.8,1.26659235]
[1772192107937,6.04138168,1975.0,1973.9,0.96426387]
[1772192108565,0.9778843,1974.9,1973.9,0.96426387]
[1772192110232,1.26595098,1974.8,1973.9,0.96426387]
[1772192110436,2.3167957,1974.8,1973.9,0.96426387]
[1772192113242,2.3167957,1974.8,1973.9,2.23078718]
[1772192113449,2.3167957,1974.8,1974.0,0.99934711]
[1772192113646,1.26595098,1974.8,1974.0,0.99934711]
[1772192114337,2.3167957,1974.8,1974.0,0.99934711]
[1772192115167,1.26595098,1974.8,1974.0,0.99934711]
[1772192115356,1.26595098,1974.8,1974.1,0.99934711]
[1772192116167,0.001,1974.7,1974.1,0.99934711]
[1772192118067,1.05184472,1974.7,1973.6,0.99934711]
[1772192119146,1.05084472,1974.5,1973.3,0.99934711]
[1772192119489,1.05084472,1974.2,1973.1,0.0011]
[1772192119945,1.05084472,1973.9,1973.1,0.0011]
[1772192121192,1.05084472,1973.7,1973.1,0.0011]
[1772192122852,7.51390003,1974.0,1973.1,1.00044711]
[1772192122853,1.05084472,1974.0,1973.1,1.00044711]
[1772192123172,0.18685624,1974.3,1973.1,1.00044711]
[1772192123173,1.05084472,1974.1,1973.2,0.99934711]
[1772192124473,5.06585612,1974.2,1973.2,0.99934711]
[1772192124675,1.05084472,1974.1,1973.2,0.99934711]
[1772192125279,1.26646403,1974.0,1973.2,0.99934711]
[1772192125489,1.26646403,1974.0,1973.2,2.26632304]
[1772192126287,1.26646403,1974.0,1973.2,0.99934711]
[1772192126686,1.26646403,1974.0,1973.3,0.99934711]
[1772192127379,2.3170889,1974.4,1973.5,0.99934711]
[1772192127959,1.05084472,1974.2,1973.3,0.0011]
[1772192128972,1.05084472,1974.2,1973.3,1.2680118]
[1772192129183,1.05084472,1974.2,1973.3,0.0011]
[1772192129369,1.26639987,1974.1,1973.3,0.0011]
[1772192130173,2.31724459,1974.1,1973.3,0.0011]
[1772192131590,2.31724459,1974.1,1973.3,2.26732422]
[1772192131973,2.31724459,1974.1,1973.3,1.00044711]
[1772192132881,2.31724459,1974.1,1972.6,0.0011]
[1772192132882,1.05084472,1973.8,1972.6,0.0011]
[1772192133100,8.837532,1973.9,1972.6,0.0011]
[1772192133101,2.4475306,1973.1,1972.6,0.0011]
[1772192133280,3.49837532,1973.1,1972.3,1.00044711]
[1772192133482,1.26723438,1972.8,1972.3,0.0011]
[1772192133901,1.26723438,1972.8,1970.4,1.26871619]
[1772192133902,1.05084472,1972.3,1970.4,1.26871619]
[1772192134083,1.05084472,1972.3,1970.1,0.1574296]
[1772192134084,0.18905624,1972.1,1971.0,0.0012]
[1772192134281,0.45854333,1971.9,1971.0,0.0012]
[1772192134568,1.05084472,1972.3,1971.0,0.0012]
[1772192135274,3.60903755,1972.7,1971.1,6.596594]
[1772192135472,1.26736287,1972.6,1971.4,1.26813432]
[1772192135996,2.55819283,1972.7,1971.5,0.0012]
[1772192136173,3.8254972,1972.7,1971.6,0.99934711]
[1772192136370,1.26730437,1972.7,1971.6,0.99934711]
[1772192136595,1.05084472,1973.1,1971.6,0.99934711]
[1772192136772,1.26694876,1973.3,1972.0,0.99934711]
[1772192136983,1.26694876,1973.3,1972.2,0.99934711]
[1772192137488,3.82508726,1973.4,1972.4,0.99934711]
[1772192137694,3.82508726,1973.4,1972.4,2.26682828]
[1772192138001,3.82508726,1973.4,1972.5,0.0012]
[1772192139301,7.33167106,1973.4,1972.5,0.0012]
[1772192139472,2.32615913,1973.0,1971.8,1.05043125]
[1772192139671,2.32615913,1973.0,1971.9,0.0012]
[1772192141014,2.32615913,1973.0,1971.9,0.99022396]
[1772192141317,2.32615913,1973.0,1971.9,0.98902396]
[1772192141616,2.32615913,1973.0,1972.0,1.26774847]
[1772192142591,2.32615913,1973.0,1972.0,2.25677243]
[1772192144016,2.32615913,1973.0,1972.0,0.98902396]
[1772192144335,2.32615913,1973.0,1972.0,2.25677003]
[1772192144519,2.32615913,1973.0,1969.5,0.1357104]
[1772192144520,2.4475306,1972.1,1971.0,0.98902396]
[1772192144692,1.32615948,1972.0,1971.0,0.98902396]
[1772192144892,1.32615948,1972.0,1970.9,0.003]
[1772192144893,1.05738324,1971.7,1970.9,0.003]
[1772192145092,1.05738324,1971.8,1970.9,0.003]
[1772192145803,2.32532461,1971.7,1970.9,0.003]
[1772192146335,2.32532461,1971.7,1970.2,10.08313923]
[1772192146336,1.05738324,1971.4,1970.2,2.25787997]
[1772192146490,1.26794137,1971.7,1970.5,0.98902396]
[1772192147819,1.26794137,1971.7,1970.7,0.98902396]
[1772192148117,1.26774847,1972.0,1970.7,0.98902396]
[1772192148620,2.32513171,1972.0,1970.7,0.98902396]
[1772192149021,1.05738324,1971.8,1970.5,0.98902396]
[1772192149901,1.26794137,1971.7,1970.7,0.98902396]
[1772192150100,1.05738324,1971.6,1970.3,0.98902396]
[1772192150312,2.32532461,1971.7,1970.3,0.98902396]
[1772192150715,2.32532461,1971.7,1970.2,3.8358936]
[1772192150716,1.05738324,1971.6,1970.2,1.26887407]
[1772192150999,1.05738324,1971.0,1970.1,0.1574296]
[1772192151851,1.05738324,1970.8,1970.1,0.1574296]
[1772192152412,1.05738324,1970.8,1970.1,1.42639482]
[1772192152609,1.05738324,1970.8,1970.1,0.1574296]
[1772192153304,1.05738324,1970.8,1970.5,0.0011]
[1772192153504,1.05738324,1970.8,1970.1,0.1574296]
[1772192153914,1.26858476,1970.7,1970.1,0.1574296]
[1772192154239,2.325968,1970.7,1970.1,0.1574296]
[1772192154443,1.26858476,1970.7,1970.1,0.1574296]
[1772192154750,1.26858476,1970.7,1970.0,0.003]
[1772192154751,1.26858476,1970.7,1969.9,1.26905554]
[1772192154915,1.26858476,1970.7,1969.7,1.26922881]
[1772192154916,2.325968,1970.7,1969.7,1.26922881]
[1772192155807,2.325968,1970.7,1969.7,2.25825277]
[1772192157018,1.26856881,1970.8,1969.8,0.98902396]
[1772192158623,1.05738324,1970.9,1969.9,1.26909995]
[1772192159628,1.26826298,1971.2,1970.0,0.98902396]
[1772192159933,2.32564622,1971.2,1970.1,0.98902396]
[1772192160544,1.05738324,1971.1,1970.1,0.98902396]
[1772192160743,1.05738324,1970.9,1969.9,1.26909995]
[1772192160917,1.05738324,1970.9,1969.8,2.25813646]
[1772192161116,1.05738324,1970.9,1969.9,0.98902396]
[1772192161641,1.26839167,1971.0,1969.9,0.98902396]
[1772192162534,1.05738324,1970.9,1969.8,1.2691125]
[1772192162729,1.05738324,1970.7,1969.7,5.07676929]
[1772192163522,1.05738324,1970.7,1969.7,1.26922881]
[1772192164032,1.05738324,1970.5,1969.5,0.003]
[1772192164235,1.05738324,1970.5,1969.5,1.27231149]
[1772192164428,1.05738324,1970.5,1969.5,1.27235486]
[1772192164627,1.05738324,1970.5,1969.5,1.27235032]
[1772192164834,1.05738324,1970.3,1969.5,0.003]
[1772192165132,1.05738324,1970.3,1969.8,0.0011]
[1772192166660,1.05738324,1970.3,1969.7,0.0011]
[1772192166953,5.07511165,1970.5,1969.7,0.99012396]
[1772192166954,1.26871352,1970.5,1969.7,0.99012396]
[1772192167317,1.05738324,1970.8,1969.7,0.99012396]
[1772192167521,1.05738324,1970.8,1969.7,0.0011]
[1772192167763,1.05738324,1970.6,1969.7,0.0011]
[1772192168561,3.71598663,1970.9,1969.7,0.99012396]
[1772192168562,2.32583927,1970.9,1969.7,0.99012396]
[1772192168770,1.05738324,1970.8,1969.7,1.27027606]
[1772192169075,1.05738324,1970.8,1969.7,2.25930002]
[1772192169617,5.07362627,1971.0,1969.8,0.98902396]
[1772192170116,0.98937132,1970.9,1969.8,0.98902396]
[1772192170537,0.98937132,1970.9,1969.7,1.27027606]
[1772192170758,0.98937132,1970.9,1969.7,2.26460827]
[1772192170944,2.25789171,1970.8,1969.7,2.26460827]
[1772192171764,0.98937132,1970.7,1969.7,2.26460827]
[1772192172561,0.98937132,1970.7,1969.7,0.0011]
[1772192172964,1.26877791,1970.4,1969.7,0.0011]
[1772192173162,0.98937132,1970.3,1969.7,0.0011]
[1772192174057,1.26877791,1970.4,1969.7,0.0011]
[1772192174259,0.98937132,1970.8,1969.8,0.99433221]
[1772192174458,0.98937132,1970.8,1969.7,0.0011]
[1772192174776,0.98937132,1970.8,1969.7,0.99543221]
[1772192175066,2.7456216,1970.8,1969.7,0.99543221]
[1772192175362,2.7456216,1970.8,1969.8,1.26916438]
[1772192175363,2.25795608,1970.7,1969.8,1.26916438]
[1772192175563,0.98937132,1970.6,1969.7,1.27028403]
[1772192175733,0.98937132,1970.6,1969.7,1.27032168]
[1772192176138,0.98937132,1970.6,1969.7,0.0011]
[1772192176139,1.75625028,1970.5,1969.7,0.0011]
[1772192176460,0.98937132,1970.4,1969.7,0.0011]
[1772192176847,2.25795608,1970.7,1969.7,1.27032682]
[1772192177356,2.25795608,1970.7,1969.8,0.0011]
[1772192177549,2.25895608,1970.7,1969.8,0.0011]
[1772192178252,0.001,1970.7,1969.8,0.99543221]
[1772192179346,0.001,1970.7,1969.9,1.26909995]
[1772192179767,0.001,1970.7,1969.9,2.26343216]
[1772192180153,0.001,1970.7,1970.0,0.99433221]
[1772192181473,0.001,1970.7,1970.1,1.26897111]
[1772192183982,0.001,1970.7,1970.0,2.26331954]
[1772192184155,0.001,1970.7,1970.0,1.26898733]
[1772192184977,0.001,1970.7,1970.0,2.26331954]
[1772192185177,0.001,1970.7,1970.1,0.99433221]
[1772192185674,1.26819865,1971.3,1970.2,0.99433221]
[1772192185877,2.25756997,1971.3,1970.2,0.99433221]
[1772192186048,0.98937132,1971.1,1970.2,1.26885689]
[1772192186254,2.54237132,1971.0,1970.2,1.26885689]
[1772192186684,0.98937132,1971.0,1970.2,1.26885689]
[1772192187066,2.54137132,1971.0,1970.2,1.26885689]
[1772192187289,0.98937132,1970.9,1970.1,1.26893987]
[1772192187490,0.98937132,1970.9,1970.0,6.39407584]
[1772192187491,0.98937132,1970.9,1970.0,1.26898605]
[1772192187851,0.98937132,1970.9,1969.8,0.0011]
[1772192187852,0.98937132,1970.5,1969.8,0.0011]
[1772192188092,2.25814923,1970.4,1969.8,0.0011]
[1772192188291,0.98937132,1970.3,1969.8,0.0011]
[1772192188502,1.26877791,1970.4,1969.8,0.0011]
[1772192188788,2.25814923,1970.4,1969.8,0.0011]
[1772192188953,0.98937132,1970.3,1969.8,0.0011]
[1772192189491,1.551,1970.2,1969.9,0.0011]
[1772192189978,1.26897111,1970.1,1969.9,0.0011]
[1772192190561,1.26891118,1970.2,1969.9,0.0011]
[1772192190885,1.26891118,1970.2,1968.9,5.07893146]
[1772192190886,0.98937132,1969.9,1968.9,5.07893146]
[1772192191065,0.98937132,1969.9,1969.0,0.99433221]
[1772192191258,2.54137132,1969.9,1969.0,0.99433221]
[1772192192186,2.2585357,1969.8,1969.0,2.26394898]
[1772192192690,5.07562683,1970.3,1969.0,2.26394898]
[1772192192691,1.26877791,1970.4,1969.4,0.99433221]
[1772192193295,2.53937132,1970.5,1969.4,0.99433221]
[1772192193479,0.98937132,1970.4,1969.4,0.99433221]
[1772192193680,1.55,1970.3,1969.4,0.99433221]
[1772192193864,0.98937132,1970.4,1969.4,0.99433221]
[1772192194063,0.98937132,1970.2,1969.1,0.99433221]
[1772192194268,3.80934243,1970.1,1969.2,1.26955108]
[1772192194764,2.25834243,1970.1,1969.2,2.26388329]
[1772192195170,3.80834243,1970.1,1969.2,2.26388329]
[1772192195371,1.2688423,1970.3,1969.4,0.99433221]
[1772192195792,2.8188423,1970.3,1969.4,0.99433221]
[1772192195986,0.98937132,1970.2,1969.2,1.26955108]
[1772192196287,2.25832493,1970.2,1969.3,0.99433221]
[1772192196602,3.80732493,1970.2,1969.3,0.99433221]
[1772192197111,0.98937132,1970.5,1969.3,0.99433221]
[1772192197395,0.98937132,1970.4,1969.4,0.99433221]
[1772192197573,1.81037132,1970.4,1969.4,0.99433221]
[1772192198066,0.98937132,1970.4,1969.4,0.99433221]
[1772192198268,1.26875682,1970.5,1969.6,0.99471144]
[1772192198269,1.26877622,1970.5,1969.6,0.99471144]
[1772192198592,2.58994996,1970.4,1969.6,0.99471144]
[1772192199092,2.58994996,1970.4,1969.5,1.2693577]
[1772192199491,1.03994996,1970.4,1969.6,0.99471144]
[1772192199666,2.58894996,1970.4,1969.6,0.99471144]
[1772192199864,1.549,1970.4,1969.6,0.99471144]
[1772192200266,1.2688423,1970.3,1969.7,1.26922881]
[1772192200466,2.81782261,1970.4,1969.7,1.26922881]
[1772192200688,1.26858476,1970.7,1969.8,0.98478027]
[1772192201094,3.78893913,1970.7,1969.8,0.98478027]
[1772192201373,0.97235437,1970.6,1969.8,0.98478027]
[1772192201694,0.001,1970.5,1969.8,0.98478027]
[1772192202097,0.97235437,1970.4,1969.4,2.25525496]
[1772192202414,1.2689067,1970.2,1969.4,2.25525496]
[1772192202779,6.0479812,1970.3,1969.4,2.25525496]
[1772192202780,2.24124108,1970.3,1969.4,2.25525496]
[1772192202980,2.24124108,1970.3,1969.5,0.98478027]
[1772192203212,1.26881238,1970.4,1969.5,0.98478027]
[1772192203507,1.26972288,1970.5,1969.5,0.98478027]
[1772192204010,0.001,1970.5,1969.5,0.98478027]
[1772192204508,0.001,1970.5,1970.0,0.98478027]
[1772192205002,0.001,1970.5,1969.8,5.07639981]
[1772192205381,0.001,1970.5,1969.8,6.06118008]
[1772192205583,0.97335437,1970.5,1969.7,1.26920636]
[1772192205777,0.97335437,1970.5,1969.4,5.07877867]
[1772192205778,0.97235437,1970.2,1969.4,0.0011]
[1772192205999,1.16021061,1970.5,1969.4,0.0011]
[1772192206203,2.33135437,1970.1,1969.4,0.0011]
[1772192206400,1.26903553,1970.0,1969.4,0.0011]
[1772192207299,1.545,1969.9,1969.4,0.0011]
[1772192207811,5.07614213,1970.1,1969.4,0.0011]
[1772192207812,1.26902288,1970.1,1969.4,0.0011]
[1772192208007,2.24137725,1970.1,1969.4,0.0011]
[1772192208983,1.546,1970.0,1969.4,0.0011]
[1772192209414,2.51835437,1970.0,1969.4,0.0011]
[1772192209590,1.546,1970.0,1969.4,0.0011]
[1772192210401,1.26909995,1969.9,1969.4,0.0011]
[1772192210991,2.81508806,1970.0,1969.4,0.0011]
[1772192211813,1.546,1970.0,1969.4,0.0011]
[1772192212394,0.001,1970.5,1969.4,0.98588027]
[1772192212606,1.546,1970.4,1969.6,0.98478027]
[1772192213113,1.26974438,1970.5,1969.6,0.98478027]
[1772192213314,1.26974004,1970.5,1969.6,0.98478027]
[1772192213481,0.001,1970.5,1969.6,0.98478027]
[1772192214582,0.001,1970.5,1969.8,0.96446009]
[1772192216813,1.03789168,1970.5,1969.6,1.26929325]
[1772192217220,1.03789168,1970.5,1969.6,2.23375334]
[1772192217515,1.03789168,1970.5,1969.7,0.96446009]
[1772192217709,1.543,1970.4,1969.7,0.96446009]
[1772192218708,1.26887682,1970.3,1969.6,0.96446009]
[1772192218908,2.81181865,1970.4,1969.6,0.96446009]
[1772192219113,1.541,1970.3,1969.6,0.96446009]
[1772192219698,1.26881865,1970.4,1969.6,0.96446009]
[1772192219918,1.541,1970.3,1969.5,1.27045152]
[1772192220226,2.57789168,1970.3,1969.5,1.27045152]
[1772192220423,2.57789168,1970.3,1969.5,0.0011]
[1772192220424,1.03689168,1970.2,1969.5,0.0011]
[1772192220803,1.03689168,1970.0,1969.5,0.0011]
[1772192221210,2.57689168,1970.0,1969.5,0.0011]
[1772192221420,1.26882778,1970.4,1969.5,0.96556009]
[1772192221725,0.001,1970.5,1969.6,0.96446009]
[1772192222023,1.54,1970.4,1969.6,0.96446009]
[1772192222198,2.57689168,1970.4,1969.6,0.96446009]
[1772192222600,1.03689168,1970.3,1969.5,0.0011]
[1772192222996,1.03689168,1970.2,1969.5,0.0011]
[1772192223304,1.26880626,1970.4,1969.5,0.96556009]
[1772192223508,1.54,1970.3,1969.5,0.96556009]
[1772192224207,1.26880626,1970.4,1969.5,0.96556009]
[1772192224410,2.80880626,1970.4,1969.5,0.96556009]
[1772192224716,6.11289009,1970.5,1969.7,0.96446009]
[1772192224717,1.26971533,1970.5,1969.7,0.96446009]
[1772192225113,0.001,1970.5,1969.8,1.26916438]
[1772192225927,0.001,1970.5,1969.8,2.23362447]
[1772192226294,0.001,1970.5,1969.9,0.96446009]
[1772192226697,0.001,1970.2,1969.9,0.96446009]
[1772192227232,0.001,1970.2,1970.0,1.26903553]
[1772192227401,0.001,1970.2,1970.0,2.23349562]
[1772192227728,0.001,1970.5,1970.1,0.96446009]
[1772192229230,1.26835912,1971.1,1970.3,0.96446009]
[1772192229418,2.3052508,1971.1,1970.3,0.96446009]
[1772192231419,0.96696451,1971.0,1970.1,3.84490335]
[1772192231731,0.96696451,1971.0,1970.1,1.2689286]
[1772192232225,5.07417237,1971.2,1970.1,1.2689286]
[1772192232431,0.96696451,1971.1,1970.2,1.05397315]
[1772192233332,0.96696451,1970.7,1969.6,0.0011]
[1772192233540,0.96696451,1970.5,1969.6,1.05507315]
[1772192234836,0.96696451,1970.5,1969.6,0.0011]
[1772192235035,0.96696451,1970.2,1969.6,0.0011]
[1772192235237,2.50096451,1970.1,1969.6,0.0011]
[1772192235437,1.26903553,1970.0,1969.6,0.0011]
[1772192236117,2.80395544,1970.2,1969.6,0.0011]
[1772192236441,3.77091995,1970.2,1969.6,0.0011]
[1772192237119,3.77087242,1970.2,1969.6,0.0011]
[1772192237629,1.26890791,1970.2,1969.6,0.0011]
[1772192238447,4.0,1970.3,1969.6,1.05507315]
[1772192238645,0.001,1970.4,1969.6,1.05507315]
[1772192239555,0.001,1970.4,1969.6,0.0011]
[1772192239556,2.23674566,1970.4,1969.6,0.0011]
[1772192239957,0.96696451,1970.1,1969.2,0.0011]
[1772192240454,0.96696451,1970.0,1969.2,0.0011]
[1772192241431,1.26909995,1969.9,1969.2,0.0011]
[1772192241737,0.96696451,1969.8,1969.2,0.0011]
[1772192243753,1.26922881,1969.7,1969.2,0.0011]
[1772192244832,2.23617765,1969.8,1969.2,0.0011]
[1772192245234,0.96696451,1969.7,1969.2,0.0011]
[1772192247129,0.96696451,1969.5,1969.1,0.0011]
[1772192247450,0.96696451,1969.4,1968.7,0.003]
[1772192247820,0.96696451,1969.4,1968.0,5.08636733]
[1772192247821,0.96696451,1969.4,1968.1,1.05397315]
[1772192248146,0.96696451,1969.4,1968.0,0.0051]
[1772192248147,0.96696451,1969.0,1968.0,1.2753801]
[1772192248523,0.96696451,1969.0,1968.1,1.05397315]
[1772192248727,0.96696451,1969.0,1968.2,1.05397315]
[1772192249249,0.96696451,1969.0,1968.3,1.27013158]
[1772192249483,2.23664927,1969.0,1968.3,1.27013158]
[1772192249654,0.96696451,1968.9,1968.3,1.27013158]
[1772192249947,0.96696451,1968.9,1968.2,1.27015863]
[1772192251148,0.96696451,1968.7,1966.8,0.5]
[1772192251347,0.96696451,1967.6,1966.6,1.05397315]
[1772192251548,0.96696451,1968.2,1966.8,1.05397315]
[1772192251747,0.96696451,1968.2,1967.0,1.05397315]
[1772192252053,0.96696451,1968.2,1967.1,1.304]
[1772192252251,0.96696451,1967.8,1966.5,1.27123171]
[1772192252452,0.96696451,1967.6,1966.6,1.05397315]
[1772192252746,0.96696451,1967.6,1966.5,1.27123171]
[1772192252947,0.96696451,1968.3,1967.0,1.05397315]
[1772192253134,0.96696451,1968.1,1966.8,2.32507341]
[1772192253333,0.96696451,1968.1,1967.0,1.05397315]
[1772192253538,0.96696451,1968.1,1967.2,1.05397315]
[1772192254354,0.96696451,1968.1,1967.1,1.304]
[1772192254543,0.96696451,1968.1,1966.8,1.27110026]
[1772192254860,0.96696451,1968.1,1966.9,1.05397315]
[1772192255030,0.96696451,1967.8,1966.8,1.27110026]
[1772192255236,0.96696451,1967.5,1966.5,1.27129417]
[1772192255855,0.96696451,1967.3,1966.4,0.0078984]
[1772192256074,0.96696451,1967.1,1966.4,1.27924511]
[1772192256238,0.96696451,1967.1,1966.4,1.27924862]